fUSD/lending_fUSD_20240421
["ID","MTS","AMOUNT","RATE_DAILY","PERIOD"]
[323147307,1713714631635,-185.40586123,0.00012034,2]
[323147308,1713714631644,-889.31831863,0.00012034,2]
[323147309,1713714631654,-207.72132305,0.00012034,2]
[323147310,1713714631663,-6372.29051328,0.00012034,2]
[323147311,1713714631672,-322.28170193,0.00012035,2]
[323147312,1713714631786,-1147.11514937,0.00012035,2]
[323147313,1713714631994,-1586.8326,0.00012035,2]
[323147314,1713714632020,-316.0,0.00012035,2]
[323147315,1713714632144,-7415.19241974,0.00012035,2]
[323147316,1713714632153,-22256.80758126,0.00012036,2]
[323147317,1713714632165,-10679.590396,0.00012036,2]
[323147318,1713714632176,-317.06523479,0.00012036,2]
[323147322,1713714637538,-512856.62178754,0.00012036,2]
[323147323,1713714637549,-1000.0,0.00012037,2]
[323147324,1713714637558,-50849.53,0.00012037,2]
[323147325,1713714637569,-860.88,0.00012069,2]
[323147326,1713714637579,-1000.0,0.0001207,2]
[323147327,1713714637588,-299.99,0.0001207,2]
[323147328,1713714637598,-3028.1,0.0001207,2]
[323147329,1713714637607,-150.99,0.0001207,2]
[323147330,1713714637617,-591.93,0.0001207,2]
[323147331,1713714637628,-500.0,0.000121,4]
[323147332,1713714637638,-676.23,0.000121,2]
[323147333,1713714637647,-499.99,0.000121,2]
[323147334,1713714637658,-1618.93,0.000121,2]
[323147335,1713714637668,-447.85,0.000121,2]
[323147336,1713714637677,-1000.0,0.00012102,2]
[323147337,1713714637686,-1000.0,0.00012135,2]
[323147338,1713714637695,-1000.0,0.00012168,2]
[323147339,1713714637704,-175.58,0.00012197,2]
[323147340,1713714637713,-700.0,0.000122,4]
[323147341,1713714637722,-1000.0,0.000122,2]
[323147342,1713714637731,-1000.0,0.00012233,2]
[323147343,1713714637740,-4289.47265882,0.00012247,2]
[323147344,1713714637749,-172.14,0.00012251,2]
[323147345,1713714637758,-1000.0,0.00012266,2]
[323147346,1713714637768,-1000.0,0.00012298,2]
[323147347,1713714637777,-1000.0,0.000123,4]
[323147348,1713714637786,-155.0,0.0001231,2]
[323147349,1713714637795,-242.50876905,0.0001231,2]
[323147350,1713714637804,-305.0,0.0001231,2]
[323147351,1713714637814,-512.20625795,0.0001231,2]
[323147352,1713714637823,-164.61352808,0.0001231,2]
[323147353,1713714637832,-155.0,0.0001231,2]
[323147354,1713714637841,-478.70142967,0.0001231,2]
[323147355,1713714637850,-1561.58021746,0.00012311,2]
[323147356,1713714637859,-9099.8,0.00012315,2]
[323147357,1713714637868,-1000.0,0.00012331,2]
[323147358,1713714637877,-2104.37215187,0.00012347,2]
[323147359,1713714637887,-442.6045,0.00012356,2]
[323147360,1713714637896,-1000.0,0.00012364,2]
[323147361,1713714637906,-1000.0,0.00012396,2]
[323147362,1713714637915,-1200.0,0.000124,4]
[323147363,1713714637924,-1000.0,0.00012429,2]
[323147364,1713714637933,-1000.0,0.00012462,2]
[323147365,1713714637943,-1000.0,0.00012494,2]
[323147366,1713714637953,-200.0,0.000125,4]
[323147367,1713714637962,-1000.0,0.00012527,2]
[323147368,1713714637971,-200.0,0.000126,4]
[323147369,1713714637980,-200.0,0.000127,4]
[323147370,1713714637989,-200.0,0.000128,4]
[323147371,1713714637998,-1821.18761509,0.000128,2]
[323147372,1713714638007,-1821.18761507,0.0001285,2]
[323147373,1713714638016,-251.36502565,0.00012867,2]
[323147374,1713714638026,-4817.84174751,0.00012875,2]
[323147375,1713714638035,-2884.33570143,0.00012876,2]
[323147376,1713714638044,-150.0,0.00012877,2]
[323147377,1713714638054,-183.72725002,0.000129,2]
[323147378,1713714638063,-629.0,0.000129,4]
[323147379,1713714638073,-220.76685198,0.000129,2]
[323147380,1713714638082,-3334.47698898,0.000129,2]
[323147381,1713714638091,-3334.47698897,0.000129,2]
[323147382,1713714638100,-3334.47698897,0.000129,2]
[323147383,1713714638110,-3334.47698897,0.000129,2]
[323147384,1713714638120,-725.90498024,0.000129,2]
[323147385,1713714638129,-3334.47698897,0.000129,2]
[323147386,1713714638138,-3334.47698897,0.000129,2]
[323147387,1713714638147,-3334.47698897,0.000129,2]
[323147388,1713714638156,-3334.47698897,0.000129,2]
[323147389,1713714638165,-1821.18761507,0.000129,2]
[323147390,1713714638176,-1695.71794351,0.000129,2]
[323147391,1713714638185,-183.72725002,0.00012904,2]
[323147392,1713714638194,-183.72725002,0.00012907,2]
[323147393,1713714638203,-183.72725002,0.00012911,2]
[323147394,1713714638213,-183.72725002,0.00012914,2]
[323147395,1713714638222,-1000.0,0.0001296,2]
[323147396,1713714638232,-426.53687456,0.00012991,2]
[323147397,1713714638242,-669.0129911,0.00012993,2]
[323147398,1713714638251,-366.38691564,0.00012993,2]
[323147399,1713714638261,-949.71409335,0.00012994,2]
[323147400,1713714638270,-267.10232057,0.00012996,2]
[323147401,1713714638279,-4406.01803981,0.00012996,2]
[323147402,1713714638288,-209.04676738,0.00012996,2]
[323147403,1713714638298,-599.06386503,0.00012996,2]
[323147404,1713714638307,-756.25591946,0.00012996,2]
[323147405,1713714638318,-1302.01131147,0.00012996,2]
[323147406,1713714638327,-247.50710035,0.00012996,2]
[323147407,1713714638336,-167.44367917,0.00012996,2]
[323147408,1713714638345,-179.60671853,0.00012997,2]
[323147409,1713714638354,-1240.38328004,0.00012997,2]
[323147410,1713714638363,-526.51897458,0.00012997,2]
[323147411,1713714638372,-155.0,0.00012997,2]
[323147412,1713714638381,-155.09732717,0.00012997,2]
[323147413,1713714638390,-2353.62009514,0.00012997,2]
[323147414,1713714638399,-155.38655138,0.00012997,2]
[323147415,1713714638409,-155.0,0.00012997,2]
[323147416,1713714638418,-203.78155668,0.00012997,2]
[323147417,1713714638428,-166.96716868,0.00012997,2]
[323147418,1713714638438,-287.6377139,0.00012997,2]
[323147419,1713714638449,-3901.00734029,0.00012997,2]
[323147420,1713714638458,-155.0,0.00012997,2]
[323147421,1713714638468,-309.40866786,0.00012997,2]
[323147422,1713714638477,-199.87072247,0.00012997,2]
[323147423,1713714638488,-155.0,0.00012997,2]
[323147424,1713714638498,-155.0,0.00012997,2]
[323147425,1713714638507,-202.11645638,0.00012997,2]
[323147426,1713714638518,-215.90469682,0.00012997,2]
[323147427,1713714638528,-376.48214074,0.00012997,2]
[323147428,1713714638537,-206.18426768,0.00012997,2]
[323147429,1713714638547,-407.56490296,0.00012997,2]
[323147430,1713714638556,-264.05975864,0.00012997,2]
[323147431,1713714638567,-966.55573744,0.00012997,2]
[323147432,1713714638577,-155.0,0.00012997,2]
[323147433,1713714638586,-200.94153497,0.00012997,2]
[323147434,1713714638595,-155.0,0.00012998,2]
[323147435,1713714638605,-164.35295761,0.00012998,2]
[323147436,1713714638613,-655.18364112,0.00012998,2]
[323147437,1713714638623,-155.3011019,0.00012998,2]
[323147438,1713714638632,-3926.62250912,0.00012998,2]
[323147439,1713714638641,-340.5686904,0.00012998,2]
[323147440,1713714638650,-9999.99738725,0.00012999,2]
[323147441,1713714638661,-419.85436472,0.00012999,2]
[323147442,1713714638670,-304.99787147,0.00012999,2]
[323147443,1713714638680,-8458025.81345772,0.00013,2]
[323147444,1713714638692,-881034.01076371,0.00013,2]
[323147445,1713714638704,-63533.4082453,0.00013,2]
[323147446,1713714638715,-3385.96953395,0.00013,2]
[323147447,1713714638736,-3228.89249319,0.00013,2]
[323147448,1713714638748,-738.294,0.00013,2]
[323147449,1713714638768,-700.0,0.00013,2]
[323147450,1713714638789,-5731.89280292,0.00013,2]
[323147451,1713714638859,-437.55,0.00013,2]
[323147452,1713714638979,-4515.99443905,0.00013,2]
[323147453,1713714639008,-12507.67188522,0.00013,2]
[323147454,1713714639021,-10150.25498843,0.00013,2]
[323147464,1713714639677,-2401.00503057,0.00013,2]
[323147465,1713714639695,-9965.97812627,0.00013,2]
[323147466,1713714639706,-786.37319999,0.00013,2]
[323147467,1713714639718,-8609.67,0.00013,2]
[323147468,1713714639809,-2846.65934622,0.00013,2]
[323147469,1713714639822,-2980.27730005,0.00013,2]
[323147470,1713714639872,-2287.53868997,0.00013,2]
[323147471,1713714639884,-752.31801897,0.00013,2]
[323147472,1713714639896,-1784.03961334,0.00013,2]
[323147473,1713714639907,-849.99221988,0.00013,2]
[323147474,1713714639924,-394.18780526,0.00013,2]
[323147475,1713714639935,-568.47442909,0.00013,2]
[323147476,1713714640744,200.0,0.00011639,2]
[323147482,1713714642634,-417.51754277,0.00013,2]
[323147483,1713714642646,-478.46625305,0.00013,2]
[323147484,1713714642713,-1078.79243425,0.00013,2]
[323147485,1713714642725,-1599.74003416,0.00013,2]
[323147486,1713714642824,-1836.89131388,0.00013,2]
[323147488,1713714643348,-331.49563884,0.00013,2]
[323147489,1713714643360,-553.93911074,0.00013,2]
[323147490,1713714643399,-650.65,0.00013,2]
[323147493,1713714645633,-2441.44795968,0.00012999,2]
[323147494,1713714645698,-2397.51560316,0.00012999,2]
[323147495,1713714645755,-2343.36758848,0.00012999,2]
[323147496,1713714645879,-16164.91564893,0.00012999,2]
[323147497,1713714645889,-15335.08435107,0.00013,2]
[323147498,1713714645922,-670.04145643,0.00013,2]
[323147514,1713715016589,154.4,0.0001148,2]
[323147515,1713715017014,154.4,0.00011537,2]
[323147516,1713715072853,393.738475,0.00011959,2]
[323147517,1713715085233,162.9,0.00011412,2]
[323147519,1713715121320,150.0,0.00011347,2]
[323147520,1713715135701,250.0,0.00011347,2]
[323147521,1713715226541,898.95,0.0001133,2]
[323147522,1713715226689,582.02,9.412e-05,2]
[323147523,1713715226896,582.02,0.00011676,2]
[323147524,1713715253167,1000.0,0.00011319,2]
[323147525,1713715254637,23900.0,0.00011319,2]
[323147526,1713715277031,1279.32448358,0.00012,2]
[323147527,1713715279431,203.91934184,0.00012,2]
[323147528,1713715280466,175.58,0.00011849,2]
[323147529,1713715291813,255.3668917,0.00012,2]
[323147530,1713715294475,2179.20192415,0.00012,2]
[323147531,1713715296569,533.02713653,0.00012,2]
[323147532,1713715317476,207.72132305,0.00012,2]
[323147533,1713715332797,155.0,0.00012,2]
[323147534,1713715334983,8772.22,0.00011364,2]
[323147535,1713715355174,4582.35597345,0.00012,2]
[323147536,1713715382173,150.0,0.00012,2]
[323147537,1713715395557,1626.0,0.00012,2]
[323147538,1713715396055,207.72132305,0.00012,2]
[323147540,1713715412449,508.09,0.00011584,2]
[323147541,1713715412691,508.09,0.00011616,2]
[323147542,1713715412911,508.09,0.00011648,2]
[323147543,1713715413117,508.09,0.00011679,2]
[323147544,1713715413568,508.09,0.00011711,2]
[323147545,1713715413646,188.44,0.00011498,2]
[323147546,1713715413756,508.09,0.00011743,2]
[323147547,1713715414046,508.09,0.00011775,2]
[323147548,1713715414176,508.09,0.00011807,2]
[323147549,1713715414304,777.03473651,0.00012,2]
[323147550,1713715414592,508.09,0.00011838,2]
[323147551,1713715414701,508.09,0.0001187,2]
[323147552,1713715414880,508.09,0.00011902,2]
[323147553,1713715415096,508.09,0.00011934,2]
[323147554,1713715415336,508.09,0.00011965,2]
[323147555,1713715416241,508.09,0.00011997,2]
[323147556,1713715419547,1822.21277453,0.00012,2]
[323147558,1713715599059,158.30035245,0.00011912,2]
[323147559,1713715603874,158.30035243,0.00011993,2]
[323147560,1713715662991,250.0,0.00011242,2]
[323147561,1713715728445,200.0,0.00011351,2]
[323147562,1713715729640,-167.32653408,0.00012002,2]
[323147563,1713715729674,-4582.35597345,0.00012003,2]
[323147564,1713715729694,-706.34979977,0.00012003,2]
[323147565,1713715729712,-4343.9676927,0.00012004,2]
[323147566,1713715743924,2641.140999,0.00011944,2]
[323147567,1713715747764,4519.11801057,0.00011992,2]
[323147568,1713715749694,584.6,9.456e-05,2]
[323147569,1713715749915,584.6,0.0001172,2]
[323147570,1713715760614,178.01153981,0.00011403,2]
[323147574,1713715766397,-3000.0,0.00012002,2]
[323147575,1713715767440,-1163.52467581,0.00012002,2]
[323147576,1713715767461,-150.0,0.00012003,2]
[323147577,1713715767483,-1686.47532419,0.00012003,2]
[323147578,1713715767926,-3000.0,0.00012003,2]
[323147579,1713715768568,-3000.0,0.00012003,2]
[323147580,1713715769206,-3000.0,0.00012003,2]
[323147581,1713715769858,-3000.0,0.00012003,2]
[323147582,1713715770641,-3000.0,0.00012003,2]
[323147583,1713715771195,-3000.0,0.00012003,2]
[323147584,1713715771838,-3000.0,0.00012003,2]
[323147585,1713715772489,-660.77147606,0.00012003,2]
[323147586,1713715772512,-166.84316462,0.00012003,2]
[323147587,1713715772534,-536.72263243,0.00012003,2]
[323147588,1713715772559,-424.91634575,0.00012003,2]
[323147589,1713715772582,-1210.74638114,0.00012003,2]
[323147590,1713715773244,-29.6368989,0.00012003,2]
[323147591,1713715773268,-2970.3631011,0.00012004,2]
[323147592,1713715773399,1492.52945062,0.00011385,2]
[323147593,1713715773421,22407.47054938,0.00011385,2]
[323147594,1713715807455,-3000.0,0.00012003,2]
[323147595,1713715808074,-3000.0,0.00012003,2]
[323147596,1713715808896,-3000.0,0.00012003,2]
[323147597,1713715809629,-3000.0,0.00012003,2]
[323147598,1713715810267,-3000.0,0.00012003,2]
[323147599,1713715811008,-3000.0,0.00012003,2]
[323147600,1713715811724,-3000.0,0.00012003,2]
[323147601,1713715811956,178.35423099,0.00011996,2]
[323147602,1713715812443,-2347.24680025,0.00012003,2]
[323147603,1713715812467,-652.75319975,0.00012004,2]
[323147604,1713715813255,-3000.0,0.00012004,2]
[323147605,1713715822489,-2000.0,0.00012004,2]
[323147606,1713715823011,-2000.0,0.00012004,2]
[323147607,1713715823745,-2000.0,0.00012004,2]
[323147654,1713715832488,-1182.10060773,0.00012003,2]
[323147655,1713715832499,-2705.25859227,0.00012003,2]
[323147656,1713715832515,-14380.00216171,0.00012003,2]
[323147657,1713715832527,-1445.08497739,0.00012003,2]
[323147658,1713715832536,-1786.00251261,0.00012004,2]
[323147659,1713715832555,-6486.82246904,0.00012004,2]
[323147660,1713715832566,-2980.91585791,0.00012004,2]
[323147661,1713715832576,-2779.93924209,0.00012004,2]
[323147662,1713715832587,-1138.45782899,0.00012004,2]
[323147663,1713715832604,-2077.84217101,0.00012005,2]
[323147664,1713715832615,-1479.4257306,0.00012005,2]
[323147665,1713715832627,-352.8549735,0.00012005,2]
[323147666,1713715832638,-542199.96212448,0.00012005,2]
[323147667,1713715832647,-84553.03936157,0.00012006,2]
[323147668,1713715832657,-10372.04019043,0.00012013,2]
[323147669,1713715832666,-1000.0,0.00012015,2]
[323147670,1713715832676,-150.99,0.00012016,2]
[323147671,1713715832686,-4768.98,0.00012016,2]
[323147672,1713715832695,-1161.04,0.00012016,2]
[323147673,1713715832705,-508.09,0.00012029,2]
[323147674,1713715832713,-12081.01,0.00012055,2]
[323147675,1713715832723,-499.99,0.00012055,2]
[323147676,1713715832732,-9999.99,0.00012055,2]
[323147677,1713715832741,-150.99,0.00012055,2]
[323147678,1713715832751,-999.99,0.00012055,2]
[323147679,1713715832760,-12021.1,0.00012055,2]
[323147680,1713715832769,-508.09,0.00012061,2]
[323147681,1713715832779,-158.30035243,0.00012074,2]
[323147682,1713715832788,-9999.99,0.00012074,2]
[323147683,1713715832797,-508.09,0.00012093,2]
[323147684,1713715832807,-508.09,0.00012124,2]
[323147685,1713715832820,-299.99,0.00012124,2]
[323147686,1713715832830,-173.02,0.00012153,2]
[323147687,1713715832839,-150.99,0.00012153,2]
[323147688,1713715832854,-158.30035243,0.00012154,2]
[323147689,1713715832863,-508.09,0.00012156,2]
[323147690,1713715832873,-886.94,0.00012187,2]
[323147691,1713715832883,-508.09,0.00012188,2]
[323147692,1713715832893,-280.76707265,0.00012235,2]
[323147693,1713715832902,-158.30035243,0.00012235,2]
[323147694,1713715832912,-5639.846599,0.00012333,2]
[323147695,1713715832921,-2884.33570143,0.00012333,2]
[323147696,1713715832930,-273.12750202,0.00012333,2]
[323147697,1713715832939,-242.63061963,0.00012333,2]
[323147698,1713715832982,-879.03366531,0.00012333,2]
[323147699,1713715832991,-174.21845116,0.00012333,2]
[323147700,1713715833001,-366.25310299,0.00012333,2]
[323147701,1713715833011,-567.87759069,0.00012333,2]
[323147702,1713715833021,-1219.0410115,0.00012333,2]
[323147703,1713715833030,-203.66115181,0.00012334,2]
[323147704,1713715833041,-2286.09792828,0.00012334,2]
[323147705,1713715833053,-1084.914,0.00012335,2]
[323147706,1713715833064,-525.88754119,0.00012344,2]
[323147707,1713715833074,-34668.44377621,0.00012346,2]
[323147708,1713715833085,-3162.57273202,0.00012347,2]
[323147709,1713715833099,-280.76707265,0.00012401,2]
[323147710,1713715833110,-251.36502565,0.000125,2]
[323147711,1713715833120,-280.76707265,0.00012568,2]
[323147712,1713715833131,-166.93,0.00012651,2]
[323147713,1713715833141,-1000.0,0.00012733,2]
[323147714,1713715833151,-280.76707265,0.00012734,2]
[323147715,1713715833161,-200.0,0.0001277,2]
[323147716,1713715833170,-173.32986147,0.000128,2]
[323147717,1713715833179,-178.27646935,0.00012897,2]
[323147718,1713715833189,-23657.0,0.000129,2]
[323147719,1713715833198,-26675.81591177,0.000129,2]
[323147720,1713715833209,-501.17259532,0.000129,2]
[323147721,1713715833218,-175447.26387449,0.000129,2]
[323147722,1713715833228,-1677.61349917,0.000129,2]
[323147723,1713715833237,-178.27646934,0.000129,2]
[323147724,1713715833247,-280.76707265,0.000129,2]
[323147725,1713715833258,-725.90498024,0.000129,2]
[323147726,1713715833269,-292.40055349,0.000129,2]
[323147727,1713715833279,-426.53687456,0.0001299,2]
[323147728,1713715833289,-304.99787147,0.00012997,2]
[323147729,1713715833299,-155.3011019,0.00012997,2]
[323147730,1713715833308,-655.18364112,0.00012997,2]
[323147731,1713715833318,-419.85436472,0.00012997,2]
[323147732,1713715833327,-164.35295761,0.00012997,2]
[323147733,1713715833337,-249.73515181,0.00012997,2]
[323147734,1713715833349,-3926.62250912,0.00012997,2]
[323147735,1713715833358,-155.0,0.00012997,2]
[323147736,1713715833367,-340.5686904,0.00012997,2]
[323147737,1713715833377,-199.87072247,0.00012997,2]
[323147738,1713715833386,-376.48214074,0.00012997,2]
[323147739,1713715833395,-309.40866786,0.00012997,2]
[323147740,1713715833405,-155.0,0.00012997,2]
[323147741,1713715833414,-202.11645638,0.00012997,2]
[323147742,1713715833424,-966.55573744,0.00012997,2]
[323147743,1713715833434,-155.0,0.00012997,2]
[323147744,1713715833443,-155.0,0.00012997,2]
[323147745,1713715833600,-155.0,0.00012997,2]
[323147746,1713715833610,-407.56490296,0.00012997,2]
[323147747,1713715833620,-206.18426768,0.00012997,2]
[323147748,1713715833629,-264.05975864,0.00012997,2]
[323147749,1713715833638,-215.90469682,0.00012997,2]
[323147750,1713715833648,-3901.00734029,0.00012997,2]
[323147751,1713715833657,-287.6377139,0.00012997,2]
[323147752,1713715833666,-155.38655138,0.00012997,2]
[323147753,1713715833675,-155.0,0.00012997,2]
[323147754,1713715833685,-756.25591946,0.00012997,2]
[323147755,1713715833695,-4406.01803981,0.00012997,2]
[323147756,1713715833704,-247.50710035,0.00012997,2]
[323147757,1713715833713,-2353.62009514,0.00012997,2]
[323147758,1713715833723,-167.44367917,0.00012997,2]
[323147759,1713715833732,-1302.01131147,0.00012997,2]
[323147760,1713715833743,-949.71409335,0.00012997,2]
[323147761,1713715833752,-267.10232057,0.00012997,2]
[323147762,1713715833762,-155.0,0.00012997,2]
[323147763,1713715833772,-599.06386503,0.00012997,2]
[323147764,1713715833781,-155.09732717,0.00012997,2]
[323147765,1713715833790,-209.04676738,0.00012997,2]
[323147766,1713715833800,-155.0,0.00012998,2]
[323147767,1713715833813,-683.85801467,0.00012998,2]
[323147768,1713715833822,-10000.0,0.00012999,2]
[323147769,1713715833831,-155.05352389,0.00012999,2]
[323147770,1713715833842,-7338.41932417,0.00012999,2]
[323147771,1713715833853,-195652.80613571,0.00013,2]
[323147772,1713715833866,-3160.37244583,0.00013,2]
[323147773,1713715833880,-3391.0572534,0.00013,2]
[323147774,1713715833894,-389.84087267,0.00013,2]
[323147775,1713715833906,-36462.17321026,0.00013,2]
[323147776,1713715833940,-1819.35,0.00013,2]
[323147777,1713715833953,-257.54521225,0.00013,2]
[323147778,1713715833965,-5387.05570552,0.00013,2]
[323147779,1713715833977,-269.23112422,0.00013,2]
[323147780,1713715833999,-505.854995,0.00013,2]
[323147781,1713715834010,-6828.9003,0.00013,2]
[323147782,1713715834021,-6055.9025272,0.00013,2]
[323147783,1713715834032,-28970.000002,0.00013,2]
[323147784,1713715834055,-606.0,0.00013,2]
[323147809,1713715837719,-1851.18464364,0.000129,2]
[323147810,1713715837729,-2079.37521147,0.00013,2]
[323147811,1713715837740,-1510.92,0.00013,2]
[323147812,1713715837751,-326602.05602094,0.00013,2]
[323147813,1713715837941,-517.48340875,0.00013,2]
[323147814,1713715837952,-621.8,0.00013,2]
[323147815,1713715837974,-26558.38130078,0.00013,2]
[323147816,1713715837991,-9756578.04560199,0.00013,2]
[323147817,1713715838003,-881186.58076371,0.00013,2]
[323147818,1713715838027,-265.6478271,0.00013,2]
[323147819,1713715838039,-871.83,0.00013,2]
[323147820,1713715838083,-327.997015,0.00013,2]
[323147821,1713715838094,-1214.44551512,0.00013,2]
[323147832,1713715839765,-2944.99999991,0.00013,2]
[323147835,1713715839940,-222309.73168877,0.00013,2]
[323147836,1713715839999,-518.8564595,0.00013,2]
[323147837,1713715840059,-311.5864752,0.00013,2]
[323147838,1713715840071,-2894.0,0.00013,2]
[323147865,1713715842775,-1281.00000015,0.00013,2]
[323147866,1713715842835,-2064.17286886,0.00013,2]
[323147867,1713715842896,-0.00125974,0.00013,2]
[323147868,1713715842913,-345.96679372,0.00013,2]
[323147869,1713715842924,-51382.94784313,0.00013,2]
[323147870,1713715842938,-1125.78865221,0.00013,2]
[323147871,1713715843115,-14673.60241346,0.00013,2]
[323147872,1713715843140,-32312.92,0.00013,2]
[323147873,1713715843175,-432.06674985,0.00013,2]
[323147874,1713715843213,-7112.26964255,0.00013,2]
[323147889,1713715845795,-2957.21493839,0.00012999,2]
[323147890,1713715845806,-271.94344968,0.00012999,2]
[323147891,1713715845820,-811.0,0.00012999,2]
[323147892,1713715845831,-1144.4575728,0.00012999,2]
[323147893,1713715846017,-539.51780051,0.00012999,2]
[323147894,1713715846028,-739.957415,0.00012999,2]
[323147895,1713715846053,-4272.6,0.000129,2]
[323147896,1713715846065,-1257.41687199,0.000129,2]
[323147897,1713715846086,-111.04005379,0.000129,2]
[323147898,1713715846095,-126.70557706,0.00012999,2]
[323147899,1713715846112,-328.03400001,0.00012999,2]
[323147900,1713715846123,-10523.1,0.00012999,2]
[323147903,1713715881829,-2000.0,0.00012347,2]
[323147904,1713715882288,-1157.94376133,0.00012347,2]
[323147905,1713715882311,-220.76685198,0.000129,2]
[323147906,1713715882332,-621.28938669,0.000129,2]
[323147907,1713715882653,-1604.87595974,0.000129,2]
[323147908,1713715882675,-395.12404026,0.0001298,2]
[323147909,1713715882975,-1503.35769974,0.0001298,2]
[323147910,1713715882997,-496.64230026,0.00012997,2]
[323147911,1713715883731,-2000.0,0.00012997,2]
[323147912,1713715885863,-2000.0,0.00012997,2]
[323147913,1713715886358,-2000.0,0.00012997,2]
[323147914,1713715887018,-843.22850444,0.00012997,2]
[323147915,1713715887039,-1156.77149556,0.00012997,2]
[323147916,1713715887421,-2000.0,0.00012997,2]
[323147917,1713715887780,-2000.0,0.00012997,2]
[323147918,1713715888331,-387.01329194,0.00012997,2]
[323147919,1713715888351,-269.69970103,0.00012997,2]
[323147920,1713715888373,-255.3668917,0.00012997,2]
[323147921,1713715888397,-299.77607912,0.00012998,2]
[323147922,1713715888418,-788.14403621,0.00012998,2]
[323147923,1713715888959,-1050.61819765,0.00012998,2]
[323147924,1713715888983,-949.38180235,0.00012998,2]
[323147925,1713715889233,-439.55361324,0.00012998,2]
[323147927,1713715891533,155.0,0.00012998,2]
[323147928,1713715891979,1405.44638676,0.00012998,2]
[323147929,1713715892000,2000.0,0.00012998,2]
[323147930,1713715892021,1320.06286212,0.00012998,2]
[323147931,1713715892111,338.34095941,0.00012998,2]
[323147932,1713715893096,155.0,0.00012996,2]
[323147933,1713715895125,186.59617847,0.00012998,2]
[323147935,1713715913457,-207.72132305,0.00012996,2]
[323147936,1713715913478,-313.70598498,0.00012996,2]
[323147937,1713715913499,-1478.57269197,0.00012997,2]
[323147938,1713715914803,-699.40119766,0.00012997,2]
[323147939,1713715914826,-1148.2720982,0.00012997,2]
[323147940,1713715914848,-152.32670414,0.00012997,2]
[323147941,1713715915522,-2000.0,0.00012997,2]
[323147942,1713715915894,-2000.0,0.00012997,2]
[323147945,1713715958554,545.77037152,0.00010398,2]
[323147946,1713715968005,-2000.0,0.00012345,2]
[323147947,1713715971411,-155.0,0.00012344,2]
[323147948,1713715971433,-225.4614006,0.00012345,2]
[323147949,1713715971457,-526.77797146,0.00012346,2]
[323147950,1713715971477,-165.49925274,0.00012347,2]
[323147951,1713715971499,-927.2613752,0.00012997,2]
[323147952,1713715972783,-2000.0,0.00012997,2]
[323147953,1713715973465,-259.55145275,0.00012997,2]
[323147954,1713715973487,-150.0,0.00012997,2]
[323147955,1713715973509,-1590.44854725,0.00012997,2]
[323147956,1713715974434,-2000.0,0.00012997,2]
[323147957,1713715974790,-254.55145275,0.00012997,2]
[323147958,1713715974811,-207.72132305,0.00012997,2]
[323147959,1713715974835,-313.58036252,0.00012997,2]
[323147960,1713715974859,-155.06850456,0.00012997,2]
[323147961,1713715974882,-359.2642544,0.00012997,2]
[323147962,1713715974905,-709.81410272,0.00012997,2]
[323147963,1713715975423,-1590.53027338,0.00012997,2]
[323147964,1713715975446,-288.40093877,0.00012997,2]
[323147965,1713715975471,-121.06878785,0.00012997,2]
[323147966,1713715976455,545.59817566,0.00010398,2]
[323147967,1713715976892,-240.12760608,0.00012997,2]
[323147968,1713715976913,-155.13254569,0.00012997,2]
[323147969,1713715976938,-408.44629625,0.00012997,2]
[323147970,1713715976965,-179.62352316,0.00012997,2]
[323147971,1713715976985,-155.0,0.00012997,2]
[323147972,1713715977005,-173.03375485,0.00012997,2]
[323147973,1713715977027,-542.88444914,0.00012998,2]
[323147974,1713715977048,-145.75182483,0.00012998,2]
[323147975,1713715977759,-2000.0,0.00012998,2]